bitfinex/quotes_BTCUSD_20250406
["timestamp","ask_amount","ask_price","bid_price","bid_amount"]
[1743982784925,0.012809,78070.0,78067.0,0.01428982]
[1743982785225,0.01104265,78069.0,78067.0,0.28328782]
[1743982785625,0.268975,78074.0,78069.0,0.012809]
[1743982785784,0.012808,78073.0,78067.0,0.28328782]
[1743982786214,0.268981,78073.0,78067.0,0.28328782]
[1743982786574,0.012808,78072.0,78067.0,0.28328782]
[1743982786908,0.012809,78068.0,78067.0,0.01428982]
[1743982787115,0.256181,78070.0,78067.0,0.02028982]
[1743982787314,0.256151,78079.0,78073.0,0.012808]
[1743982787518,0.25617,78074.0,78067.0,0.28928882]
[1743982787721,0.25617,78074.0,78067.0,0.28328882]
[1743982787918,0.268964,78077.0,78070.0,0.012809]
[1743982788121,0.268936,78086.0,78077.0,0.012807]
[1743982788322,0.012805,78091.0,78082.0,0.268946]
[1743982788592,0.012805,78091.0,78079.0,0.012807]
[1743982788593,0.012805,78089.0,78079.0,0.012807]
[1743982788783,0.012805,78089.0,78080.0,0.268954]
[1743982788976,0.012806,78087.0,78071.0,0.5986827]
[1743982789180,0.012808,78072.0,78071.0,0.21312]
[1743982789624,0.012809,78068.0,78067.0,0.01428982]
[1743982789778,0.012808,78071.0,78067.0,0.02028982]
[1743982789994,0.012808,78074.0,78067.0,0.28928782]
[1743982790200,0.256171,78073.0,78067.0,0.28328782]
[1743982790601,0.256178,78071.0,78067.0,0.01428982]
[1743982790804,0.25617,78073.0,78067.0,0.01428982]
[1743982791172,0.256165,78075.0,78069.0,0.256183]
[1743982791380,0.268954,78080.0,78074.0,0.012808]
[1743982791829,0.256147,78080.0,78074.0,0.012808]
[1743982791986,0.268954,78080.0,78074.0,0.012808]
[1743982792188,0.01104265,78079.0,78078.0,0.268961]
[1743982792427,0.01104265,78079.0,78074.0,0.268971]
[1743982792729,0.256144,78081.0,78075.0,0.012808]
[1743982792926,0.0112009,78080.0,78077.0,0.012807]
[1743982793129,0.256143,78082.0,78075.0,0.012808]
[1743982793357,0.0112009,78081.0,78075.0,0.256163]
[1743982793512,0.256121,78089.0,78078.0,0.012807]
[1743982793718,0.256128,78086.0,78081.0,0.012807]
[1743982793896,0.0112009,78088.0,78083.0,0.012806]
[1743982794093,0.0112009,78088.0,78085.0,0.25613]
[1743982794494,0.0112009,78087.0,78086.0,0.012806]
[1743982794837,0.671695,78096.0,78090.0,0.268919]
[1743982794838,0.012804,78095.0,78090.0,0.268919]
[1743982795058,0.268871,78104.0,78092.0,0.012805]
[1743982795227,0.0112009,78094.0,78093.0,0.268909]
[1743982795752,0.256088,78098.0,78093.0,0.268909]
[1743982795968,0.0112009,78097.0,78093.0,0.268909]
[1743982796132,0.268887,78100.0,78095.0,0.256097]
[1743982796332,0.0112009,78099.0,78095.0,0.268901]
[1743982796544,0.256082,78100.0,78095.0,0.012804]
[1743982796739,0.01039688,78121.0,78108.0,0.012802]
[1743982796740,0.012881,78115.0,78108.0,0.012802]
[1743982796947,0.256065,78106.0,78103.0,0.21292]
[1743982797127,0.256068,78104.0,78103.0,0.21292]
[1743982797364,0.268868,78106.0,78103.0,0.21292]
[1743982797702,0.012803,78104.0,78103.0,0.21292]
[1743982798348,0.268851,78110.0,78105.0,0.012803]
[1743982798679,0.268843,78113.0,78106.0,0.012803]
[1743982798882,0.012801,78117.0,78106.0,0.268865]
[1743982799087,0.256039,78114.0,78108.0,0.256055]
[1743982799286,0.012881,78115.0,78113.0,0.256038]
[1743982799287,8e-05,78115.0,78113.0,0.256038]
[1743982799446,8e-05,78115.0,78114.0,0.012801]
[1743982800267,0.000167,78120.0,78118.0,0.268823]
[1743982800268,0.00108,78119.0,78118.0,0.268823]
[1743982800469,0.00108,78119.0,78115.0,0.268833]
[1743982800689,0.00108,78119.0,78117.0,0.268827]
[1743982800890,0.00108,78119.0,78118.0,0.012801]
[1743982801095,0.00108,78119.0,78118.0,0.1421897]
[1743982801318,0.00108,78119.0,78118.0,0.14474974]
[1743982801487,0.00108,78119.0,78118.0,0.48488528]
[1743982801689,0.00108,78119.0,78118.0,0.48232524]
[1743982802059,0.00108,78119.0,78118.0,0.51793167]
[1743982802523,0.00108,78119.0,78118.0,0.17793167]
[1743982802702,0.00108,78119.0,78118.0,0.15421899]
[1743982803223,0.00108,78119.0,78118.0,0.14832524]
[1743982803720,0.00108,78119.0,78118.0,0.14232524]
[1743982804119,0.00108,78119.0,78118.0,0.15088492]
[1743982804264,0.000976,78119.0,78118.0,0.15088492]
[1743982804467,0.000976,78119.0,78118.0,0.14232524]
[1743982804914,0.000976,78119.0,78118.0,0.14832524]
[1743982805558,0.000976,78119.0,78118.0,0.13552424]
[1743982805733,0.000976,78119.0,78118.0,0.14832524]
[1743982806704,0.000976,78119.0,78118.0,0.14232524]
[1743982807000,0.000976,78119.0,78118.0,0.21277554]
[1743982807001,0.013776,78119.0,78118.0,0.21277554]
[1743982807168,0.0121769,78119.0,78118.0,0.23157654]
[1743982807372,0.000976,78119.0,78118.0,0.36096524]
[1743982807577,0.000976,78119.0,78118.0,0.35496524]
[1743982807975,0.000976,78119.0,78118.0,0.36096524]
[1743982808180,0.000976,78119.0,78118.0,0.70096524]
[1743982809762,0.000976,78119.0,78118.0,0.69496524]
[1743982809964,0.000976,78119.0,78118.0,0.70096524]
[1743982810170,0.000976,78119.0,78118.0,0.36096524]
[1743982810372,0.000976,78119.0,78118.0,0.13552424]
[1743982810573,0.000976,78119.0,78118.0,0.00613554]
[1743982810808,0.269795,78119.0,78118.0,0.00613554]
[1743982810967,0.28142368,78119.0,78118.0,0.00613554]
[1743982811387,0.28142368,78119.0,78118.0,0.00013554]
[1743982811608,0.69702368,78119.0,78118.0,0.00013554]
[1743982811854,0.69702368,78119.0,78118.0,0.00613554]
[1743982812344,0.42820468,78119.0,78118.0,0.00613554]
[1743982812565,0.44100468,78119.0,78118.0,0.00613554]
[1743982812937,0.42820468,78119.0,78118.0,0.01293654]
[1743982813181,0.01260468,78119.0,78118.0,0.12952424]
[1743982813408,0.000976,78119.0,78118.0,0.00613554]
[1743982813788,0.000976,78119.0,78118.0,0.14832524]
[1743982813988,0.000976,78119.0,78118.0,0.14232524]
[1743982814344,0.000976,78119.0,78118.0,0.13552424]
[1743982814543,0.256995,78119.0,78118.0,0.00613554]
[1743982814752,0.01260468,78119.0,78118.0,0.12952424]
[1743982814951,0.000976,78119.0,78118.0,0.14232524]
[1743982815127,0.4156,78153.0,78133.0,0.012798]
[1743982815327,0.012797,78140.0,78133.0,0.1293887]
[1743982815588,0.255997,78126.0,78123.0,0.92224]
[1743982815793,0.01162868,78125.0,78124.0,0.1293887]
[1743982816020,0.255973,78133.0,78125.0,0.2688]
[1743982816237,0.01162868,78132.0,78125.0,0.0128]
[1743982817048,0.01162868,78132.0,78127.0,0.012799]
[1743982817197,0.01162868,78132.0,78131.0,0.268779]
[1743982817420,0.255953,78140.0,78131.0,0.1421877]
[1743982817625,0.01162868,78139.0,78132.0,0.3981627]
[1743982817853,0.01162868,78139.0,78134.0,0.268768]
[1743982818027,0.01162868,78139.0,78138.0,0.012797]
[1743982818199,0.268724,78147.0,78138.0,0.1421857]
[1743982818399,0.01162868,78146.0,78141.0,0.012797]
[1743982818591,0.268711,78151.0,78141.0,0.012797]
[1743982818592,0.255922,78149.0,78141.0,0.012797]
[1743982818797,0.01162868,78148.0,78142.0,0.255944]
[1743982818992,0.01162868,78148.0,78146.0,0.268725]
[1743982819195,0.268674,78162.0,78152.0,0.012795]
[1743982819394,0.01162868,78161.0,78153.0,0.012795]
[1743982819802,0.255888,78159.0,78147.0,0.1421847]
[1743982819977,0.012794,78159.0,78151.0,0.012795]
[1743982820111,0.01106338,78158.0,78151.0,0.012795]
[1743982820317,0.01106338,78158.0,78152.0,0.268706]
[1743982820520,0.268664,78165.0,78154.0,0.2687]
[1743982820715,0.255875,78163.0,78155.0,0.268696]
[1743982820920,0.255882,78161.0,78154.0,0.012795]
[1743982821160,0.0129596,78164.0,78159.0,0.268682]
[1743982821161,0.0001666,78164.0,78159.0,0.268682]
[1743982821372,0.01106338,78163.0,78162.0,0.012793]
[1743982821581,0.0001666,78164.0,78163.0,0.268668]
[1743982821931,0.0001666,78164.0,78163.0,0.3980567]
[1743982822261,0.0001666,78164.0,78163.0,0.41776269]
[1743982822492,0.0001666,78164.0,78163.0,0.84360354]
[1743982822686,0.002,78179.0,78178.0,0.268617]
[1743982822851,0.002,78179.0,78178.0,0.6103657]
[1743982823381,0.002,78179.0,78178.0,0.62490655]
[1743982823638,0.002,78179.0,78178.0,0.6103657]
[1743982823856,0.002,78179.0,78178.0,0.62490655]
[1743982824057,0.00245535,78179.0,78178.0,0.62490655]
[1743982824257,0.00245535,78179.0,78178.0,0.72630655]
[1743982824502,8e-05,78220.0,78197.0,0.268552]
[1743982824716,8e-05,78220.0,78197.0,1.5323007]
[1743982824936,8e-05,78220.0,78208.0,0.268514]
[1743982825184,8e-05,78220.0,78208.0,0.41244355]
[1743982825414,8e-05,78220.0,78208.0,0.1421747]
[1743982825638,8e-05,78220.0,78208.0,0.15261557]
[1743982825851,8e-05,78220.0,78208.0,0.50715642]
[1743982826076,8e-05,78220.0,78208.0,0.56595965]
[1743982826306,8e-05,78220.0,78210.0,0.357786]
[1743982826527,8e-05,78220.0,78210.0,0.49671555]
[1743982826763,8e-05,78220.0,78219.0,0.28301685]
[1743982826971,0.002,78239.0,78237.0,0.268414]
[1743982827195,0.11114576,78254.0,78226.0,0.012783]
[1743982827410,0.025,78296.0,78242.0,0.03]
[1743982827411,0.01278,78243.0,78242.0,0.03]
[1743982827691,0.01278,78243.0,78232.0,0.012782]
[1743982827692,0.255609,78246.0,78244.0,0.005]
[1743982827911,0.268389,78246.0,78245.0,0.005]
[1743982828143,0.255588,78251.0,78248.0,0.005]
[1743982828381,0.012779,78250.0,78248.0,0.005]
[1743982828587,0.255588,78251.0,78245.0,0.00013554]
[1743982828588,0.012779,78251.0,78250.0,0.03]
[1743982828782,0.01278,78246.0,78245.0,0.00013554]
[1743982829406,0.255591,78250.0,78248.0,0.005]
[1743982829604,0.012779,78251.0,78245.0,0.00013554]
[1743982829605,0.01278,78246.0,78245.0,0.00013554]
[1743982829807,0.5577687,78246.0,78245.0,0.00013554]
[1743982830025,0.42838,78246.0,78245.0,0.00013554]
[1743982830496,0.5577687,78246.0,78245.0,0.00013554]
[1743982830672,0.42338,78246.0,78245.0,0.00013554]
[1743982830847,0.5527687,78246.0,78245.0,0.00013554]
[1743982831226,0.42338,78246.0,78245.0,0.00013554]
[1743982831452,0.268378,78251.0,78245.0,0.00013554]
[1743982831453,0.012778,78257.0,78252.0,0.005]
[1743982831657,0.4156,78266.0,78257.0,0.03]
[1743982831899,0.4156,78266.0,78257.0,0.042778]
[1743982832148,0.255483,78283.0,78257.0,0.042778]
[1743982832149,0.012773,78289.0,78257.0,0.1721667]
[1743982832359,0.012773,78289.0,78257.0,0.39707595]
[1743982832360,0.012774,78283.0,78257.0,0.39707595]
[1743982832568,0.012775,78272.0,78257.0,0.0530517]
[1743982832800,0.012775,78275.0,78257.0,0.2650917]
[1743982833000,0.012774,78281.0,78257.0,0.1824404]
[1743982833203,0.012774,78284.0,78269.0,0.005]
[1743982833204,0.255483,78284.0,78269.0,0.005]
[1743982833409,0.012775,78277.0,78269.0,0.005]
[1743982834021,0.012775,78277.0,78268.0,0.025]
[1743982834249,0.255514,78274.0,78265.0,0.005]
[1743982834485,0.255514,78274.0,78270.0,0.005]
[1743982834486,0.012775,78274.0,78270.0,0.005]
[1743982834722,0.012776,78269.0,78267.0,0.005]
[1743982834924,0.012775,78274.0,78269.0,0.005]
[1743982835134,0.012776,78270.0,78268.0,0.005]
[1743982835370,0.012776,78271.0,78265.0,0.005]
[1743982835603,0.26829,78274.0,78266.0,0.025]
[1743982835604,0.01847604,78269.0,78266.0,0.025]
[1743982835829,0.012776,78271.0,78266.0,0.025]
[1743982836034,0.01847604,78268.0,78267.0,0.005]
[1743982836236,0.4156,78284.0,78276.0,0.017775]
[1743982836237,0.0004562,78277.0,78276.0,0.017775]
[1743982836468,0.0004562,78277.0,78269.0,0.025]
[1743982836693,0.0004562,78277.0,78236.0,0.005]
[1743982836694,0.012775,78276.0,78274.0,0.005]
[1743982836925,0.255506,78276.0,78274.0,0.005]
[1743982837174,0.255506,78276.0,78270.0,0.005]
[1743982837175,0.012776,78271.0,78270.0,0.005]
[1743982837408,0.012775,78273.0,78272.0,0.03]
[1743982837654,0.0004562,78277.0,78276.0,0.005]
[1743982837916,0.0004562,78277.0,78276.0,0.1721637]
[1743982838159,0.0004562,78277.0,78276.0,0.1593887]
[1743982838360,0.0004562,78277.0,78276.0,0.03]
[1743982838497,0.0004562,78277.0,78276.0,0.025]
[1743982838698,0.0004562,78277.0,78275.0,0.21688]
[1743982838897,0.255509,78275.0,78274.0,0.006]
[1743982839152,0.0004562,78277.0,78276.0,0.03]
[1743982839707,0.0004562,78277.0,78276.0,0.042775]
[1743982839940,0.0004562,78277.0,78276.0,0.036]
[1743982840162,0.0004562,78277.0,78276.0,0.4823697]
[1743982840394,0.0004562,78277.0,78276.0,0.4763697]
[1743982840618,0.0004562,78277.0,78276.0,0.49691055]
[1743982840847,0.0004562,78277.0,78276.0,0.4823697]
[1743982841307,0.0004562,78277.0,78276.0,0.49691055]
[1743982841585,0.4156,78338.0,78312.0,0.005]
[1743982841810,0.0481,78352.0,78312.0,0.509957]
[1743982841811,0.012765,78339.0,78312.0,0.509957]
[1743982842028,0.012764,78344.0,78312.0,0.509957]
[1743982842254,0.255305,78338.0,78312.0,0.509957]
[1743982842444,0.012766,78333.0,78312.0,0.66426417]
[1743982842652,0.012765,78338.0,78312.0,0.64972332]
[1743982842908,0.014766,78329.0,78312.0,0.64985886]
[1743982843102,0.012767,78324.0,78312.0,0.38170186]
[1743982843217,0.268106,78327.0,78312.0,0.40402281]
[1743982843425,0.255348,78325.0,78312.0,0.40402281]
[1743982843653,0.268115,78325.0,78312.0,0.17945381]
[1743982843977,0.012767,78321.0,78312.0,0.26178511]
[1743982844298,8e-05,78326.0,78312.0,0.39439086]
[1743982844480,0.255347,78325.0,78312.0,0.39439086]
[1743982844655,0.02223269,78313.0,78312.0,0.01051316]
[1743982844856,0.04070873,78313.0,78312.0,0.00013554]
[1743982845265,0.17009743,78313.0,78312.0,0.00013554]
[1743982845475,0.04070873,78313.0,78312.0,0.00013554]
[1743982846450,0.1293887,78313.0,78312.0,5.4e-07]
[1743982846668,0.1575544,78313.0,78312.0,5.4e-07]
[1743982847459,0.1525544,78313.0,78312.0,5.4e-07]
[1743982848430,0.0281657,78313.0,78312.0,5.4e-07]
[1743982848825,0.2835507,78313.0,78312.0,5.4e-07]
[1743982849466,0.4129394,78313.0,78312.0,5.4e-07]
[1743982850024,0.268236,78289.0,78288.0,0.025]
[1743982850224,0.012772,78292.0,78288.0,0.02513567]
[1743982850461,0.012773,78289.0,78288.0,0.02513567]
[1743982850708,0.012773,78289.0,78288.0,0.00013567]
[1743982850881,0.25541,78306.0,78289.0,0.005]
[1743982851102,0.012772,78291.0,78288.0,0.00013567]
[1743982851304,0.168235,78290.0,78288.0,0.00013567]
[1743982851504,0.012773,78289.0,78288.0,0.00013567]
[1743982851863,0.1421617,78289.0,78288.0,0.00013567]
[1743982853123,0.012773,78289.0,78288.0,0.00013567]
[1743982853269,0.1421617,78289.0,78288.0,0.00013567]
[1743982853470,0.012773,78289.0,78288.0,0.00013567]
[1743982853826,0.012773,78289.0,78288.0,0.02366681]
[1743982854026,0.012773,78289.0,78272.0,0.011784]
[1743982854027,0.26829,78273.0,78272.0,0.011784]
[1743982854202,0.8132787,78273.0,78272.0,0.01191969]
[1743982854402,0.8132787,78273.0,78239.0,0.005]
[1743982854403,0.26836,78253.0,78252.0,0.011784]
[1743982854974,0.28424156,78253.0,78252.0,0.011784]
[1743982855410,0.01588156,78253.0,78252.0,0.011784]
[1743982855607,0.012776,78266.0,78252.0,0.054563]
[1743982855811,0.268337,78260.0,78257.0,0.025]
[1743982856031,0.4156,78273.0,78261.0,0.255552]
[1743982856233,0.255506,78276.0,78263.0,0.260546]
[1743982856464,0.012774,78280.0,78266.0,0.005]
[1743982856684,0.012775,78273.0,78266.0,0.03]
[1743982856856,0.4156,78290.0,78268.0,0.025]
[1743982857029,0.268236,78289.0,78274.0,0.012775]
[1743982857240,0.268221,78294.0,78279.0,0.017774]
[1743982857466,0.012772,78294.0,78283.0,0.025]
[1743982857659,0.255431,78299.0,78287.0,0.012773]
[1743982857798,0.012771,78299.0,78286.0,0.005]
[1743982858034,0.255435,78298.0,78289.0,0.03]
[1743982858238,0.255441,78296.0,78290.0,0.011784]
[1743982858440,0.012771,78302.0,78290.0,0.011784]
[1743982858441,0.01277,78308.0,78295.0,0.005]
[1743982858641,0.012771,78302.0,78295.0,0.005]
[1743982858886,0.012771,78301.0,78295.0,0.005]
[1743982859305,0.268197,78301.0,78296.0,0.011784]
[1743982859471,0.012771,78297.0,78296.0,0.011784]
[1743982860153,0.012771,78297.0,78290.0,0.00013576]
[1743982860154,0.012772,78291.0,78290.0,0.00013576]
[1743982860355,0.3976177,78291.0,78290.0,0.00013576]
[1743982860764,0.25544,78298.0,78290.0,0.00013576]
[1743982860994,0.255408,78306.0,78292.0,0.03]
[1743982861190,0.012772,78293.0,78291.0,0.005]
[1743982861524,0.255418,78303.0,78292.0,0.025]
[1743982861768,0.01277,78303.0,78295.0,0.005]
[1743982861964,0.255438,78297.0,78295.0,0.005]
[1743982862155,0.255445,78295.0,78292.0,0.03]
[1743982862373,0.255438,78297.0,78292.0,0.03]
[1743982862891,0.255444,78295.0,78293.0,0.01189917]
[1743982863257,0.012772,78294.0,78293.0,0.01189917]
[1743982863841,0.01277,78303.0,78290.0,0.00013576]
[1743982864042,0.0001666,78337.0,78292.0,0.005]
[1743982864043,0.255426,78301.0,78292.0,0.005]
[1743982864242,0.255426,78301.0,78291.0,0.025]
[1743982864243,0.255453,78292.0,78291.0,0.025]
[1743982864445,0.255453,78292.0,78290.0,0.00013576]
[1743982864669,0.012772,78291.0,78290.0,0.00013576]
[1743982865517,0.1421607,78291.0,78290.0,0.00013576]
[1743982865722,0.15783303,78291.0,78290.0,0.00013576]
[1743982865877,0.02844433,78291.0,78290.0,0.00013576]
[1743982866361,0.57343303,78291.0,78290.0,0.00013576]
[1743982866509,0.57343303,78291.0,78290.0,7.6e-07]
[1743982867082,0.44404433,78291.0,78290.0,7.6e-07]
[1743982867280,0.43127233,78291.0,78290.0,7.6e-07]
[1743982867597,0.44404433,78291.0,78290.0,7.6e-07]
[1743982868246,0.57343303,78291.0,78290.0,7.6e-07]
[1743982870466,0.43127233,78291.0,78290.0,7.6e-07]
[1743982871071,0.43127233,78291.0,78290.0,0.01190986]
[1743982871272,0.43127233,78291.0,78290.0,0.31014286]
[1743982871273,0.01567233,78291.0,78290.0,0.31014286]
[1743982871519,0.012769,78311.0,78302.0,0.025]
[1743982871832,0.01569689,78310.0,78302.0,0.025]
[1743982871995,0.255418,78303.0,78302.0,0.025]
[1743982872495,0.27111489,78303.0,78302.0,0.025]
[1743982872692,0.01569689,78303.0,78302.0,0.025]
[1743982872894,0.4156,78325.0,78316.0,0.025]
[1743982873143,0.255349,78324.0,78320.0,0.025]
[1743982873331,8e-05,78326.0,78325.0,0.042767]
[1743982873518,8e-05,78326.0,78325.0,0.1593887]
[1743982873714,8e-05,78326.0,78323.0,0.025]
[1743982873919,8e-05,78326.0,78324.0,0.02360286]
[1743982874125,8e-05,78326.0,78324.0,0.03551471]
[1743982874344,0.16176891,78325.0,78324.0,0.03551471]
[1743982874554,0.268116,78324.0,78323.0,4.9e-07]
[1743982874915,0.3975047,78324.0,78323.0,4.9e-07]
[1743982877629,0.268116,78324.0,78323.0,4.9e-07]
[1743982878653,0.3975047,78324.0,78323.0,4.9e-07]
[1743982880683,0.41320159,78324.0,78323.0,4.9e-07]
[1743982880884,0.01569689,78324.0,78323.0,4.9e-07]
[1743982881087,0.01569689,78324.0,78323.0,0.02500049]
[1743982881229,8e-05,78326.0,78325.0,0.03]
[1743982881431,8e-05,78326.0,78325.0,0.05546629]
[1743982881633,8e-05,78326.0,78325.0,0.18485499]
[1743982881837,8e-05,78326.0,78325.0,0.18740827]
[1743982882045,8e-05,78326.0,78325.0,0.18485499]
[1743982882796,0.002,78329.0,78328.0,0.042766]
[1743982883018,0.002,78329.0,78328.0,0.17470745]
[1743982883167,0.002,78329.0,78323.0,0.01276749]
[1743982883168,0.012767,78324.0,78323.0,4.9e-07]
[1743982883374,0.01609848,78324.0,78323.0,0.02500049]
[1743982883838,0.002,78329.0,78323.0,0.00500049]
[1743982883982,0.002,78329.0,78328.0,0.005]
[1743982884183,0.002,78329.0,78328.0,0.03]
[1743982884452,0.002,78329.0,78328.0,0.1721547]
[1743982884955,0.002,78329.0,78328.0,0.1543887]
[1743982885124,0.002,78329.0,78328.0,0.03]
[1743982885325,0.002,78329.0,78328.0,0.042766]
[1743982885579,0.002,78329.0,78328.0,0.1721547]
[1743982885944,0.002,78329.0,78328.0,0.2177547]
[1743982886679,0.0001666,78337.0,78336.0,0.298075]
[1743982886917,0.0001666,78337.0,78336.0,0.6388637]
[1743982887123,0.0001666,78337.0,78336.0,0.64836741]
[1743982887496,0.0001666,78337.0,78336.0,0.68076266]
[1743982887698,0.0001666,78337.0,78336.0,0.64836741]
[1743982887904,0.0001666,78337.0,78336.0,0.3707887]
[1743982888090,0.0001666,78337.0,78336.0,0.005]
[1743982888293,0.012765,78336.0,78335.0,0.025]
[1743982888497,0.01626508,78337.0,78335.0,0.03]
[1743982888700,0.0001666,78337.0,78335.0,0.03]
[1743982888920,0.01609848,78336.0,78335.0,0.042765]
[1743982889158,0.01609848,78336.0,78335.0,0.1721537]
[1743982889359,0.0001666,78337.0,78336.0,0.293075]
[1743982889572,0.0001666,78337.0,78336.0,0.4274637]
[1743982890103,0.0001666,78337.0,78336.0,0.005]
[1743982890302,0.01626508,78337.0,78336.0,0.03]
[1743982890746,0.2554766,78337.0,78334.0,0.005]
[1743982890920,0.0001666,78337.0,78336.0,0.005]
[1743982891122,0.01609848,78336.0,78334.0,0.005]
[1743982891324,0.255336,78328.0,78323.0,4.9e-07]
[1743982891522,0.255336,78328.0,78327.0,0.025]
[1743982891928,0.01609848,78328.0,78327.0,0.025]
[1743982892130,0.255284,78345.0,78330.0,0.012766]
[1743982892453,0.510417,78368.0,78330.0,0.012766]
[1743982892454,0.255259,78352.0,78336.0,0.042765]
[1743982892653,0.255265,78350.0,78336.0,0.1721537]
[1743982893212,0.255259,78352.0,78336.0,0.1721537]
[1743982893213,0.02,78354.0,78336.0,0.1721537]
[1743982893408,0.02,78354.0,78336.0,0.22250667]
[1743982893797,0.2682386,78337.0,78336.0,0.005]
[1743982894006,0.0001666,78337.0,78336.0,0.005]
[1743982894148,0.0001666,78337.0,78336.0,0.03]
[1743982894350,0.0001666,78337.0,78336.0,0.005]
[1743982895325,0.255311,78336.0,78335.0,0.025]
[1743982895496,0.0001666,78337.0,78335.0,0.025]
[1743982895735,0.01615002,78336.0,78335.0,0.025]
[1743982895908,0.01615002,78336.0,78335.0,0.1593887]
[1743982896110,0.01615002,78336.0,78335.0,0.1721537]
[1743982896313,0.0001666,78337.0,78336.0,0.268075]
[1743982896512,0.0001666,78337.0,78336.0,0.3974637]
[1743982896689,0.0001666,78337.0,78336.0,0.4224637]
[1743982897101,0.0001666,78337.0,78336.0,0.4274637]
[1743982899043,0.26802,78352.0,78349.0,0.025]
[1743982899246,0.26802,78352.0,78347.0,0.025]
[1743982899415,0.26802,78352.0,78345.0,0.005]
[1743982899416,0.01615002,78351.0,78345.0,0.005]
[1743982899655,0.255281,78345.0,78343.0,0.025]
[1743982899913,0.255287,78343.0,78342.0,0.005]
[1743982900197,0.255287,78343.0,78337.0,0.0548334]
[1743982900198,0.268068,78338.0,78337.0,0.0548334]
[1743982900400,0.012764,78343.0,78337.0,0.0548334]
[1743982900401,0.032762,78354.0,78349.0,0.025]
[1743982900555,0.255264,78350.0,78349.0,0.03]
[1743982900761,0.02,78354.0,78349.0,0.03]
[1743982900965,0.02,78354.0,78352.0,0.005]
[1743982901366,0.255255,78353.0,78348.0,0.025]
[1743982901566,0.02,78354.0,78351.0,0.025]
[1743982901928,0.02,78354.0,78349.0,0.005]
[1743982901929,0.02,78354.0,78353.0,0.025]
[1743982902084,0.255255,78353.0,78350.0,0.005]
[1743982902410,0.275251,78354.0,78353.0,0.025]
[1743982902605,0.02,78354.0,78353.0,0.03]
[1743982902831,0.255277,78346.0,78345.0,0.005]
[1743982902969,0.255274,78348.0,78345.0,0.005]
[1743982903335,0.255261,78351.0,78350.0,0.025]
[1743982904095,0.012762,78352.0,78351.0,0.025]
[1743982904720,0.015,78354.0,78352.0,0.025]
[1743982905340,0.015,78354.0,78349.0,0.005]
[1743982905341,0.015,78354.0,78353.0,0.4274057]
[1743982906434,0.015,78354.0,78353.0,0.6385657]
[1743982906876,0.015,78354.0,78353.0,0.509177]
[1743982907127,0.015,78354.0,78353.0,0.6385657]
[1743982907644,0.015,78354.0,78353.0,0.6135657]
[1743982907846,0.015,78354.0,78353.0,0.21616]
[1743982908408,0.015,78354.0,78353.0,0.24116]
[1743982908952,0.015,78354.0,78353.0,0.253922]
[1743982909508,0.015,78354.0,78353.0,0.228922]
[1743982909723,0.015,78354.0,78353.0,0.24116]
[1743982909853,0.03137136,78354.0,78353.0,0.03]
[1743982910059,0.015,78354.0,78353.0,0.03]
[1743982910642,0.00642685,78354.0,78353.0,0.4274057]
[1743982910757,0.4156,78410.0,78388.0,0.025]
[1743982910955,0.255032,78422.0,78388.0,0.4795257]
[1743982911160,0.012753,78407.0,78388.0,0.4795257]
[1743982911382,0.012755,78399.0,78388.0,0.03]
[1743982911582,0.012752,78415.0,78388.0,0.03]
[1743982911788,0.255114,78397.0,78388.0,0.037757]
[1743982911988,0.0024572,78389.0,78388.0,0.042757]
[1743982912848,0.0024572,78389.0,78388.0,0.1721457]
[1743982913071,0.0024572,78389.0,78388.0,0.025]
[1743982913639,0.01882856,78389.0,78388.0,0.025]
[1743982913961,0.01882856,78389.0,78388.0,0.1721457]
[1743982914378,0.01882856,78389.0,78385.0,0.255148]
[1743982914379,0.0024572,78389.0,78385.0,0.005]
[1743982914579,0.0024572,78389.0,78380.0,0.0498334]
[1743982914580,0.0024572,78389.0,78388.0,0.03]
[1743982914955,0.267909,78385.0,78384.0,0.025]
[1743982915297,0.0024572,78389.0,78385.0,0.025]
[1743982915462,0.255154,78384.0,78382.0,0.005]
[1743982915649,0.255154,78384.0,78383.0,0.025]
[1743982915853,0.267911,78384.0,78383.0,0.025]
[1743982916101,0.267921,78381.0,78380.0,0.0748334]
[1743982916286,0.267921,78381.0,78380.0,0.0498334]
[1743982916489,0.0024572,78389.0,78380.0,0.0498334]
[1743982916646,0.012757,78387.0,78385.0,0.025]
[1743982916851,0.012757,78385.0,78384.0,0.025]
[1743982917051,0.0024572,78389.0,78388.0,0.025]
[1743982917252,0.012757,78385.0,78384.0,0.025]
[1743982917453,0.012757,78385.0,78380.0,0.0498334]
[1743982917454,0.267921,78381.0,78380.0,0.0498334]
[1743982918462,0.267914,78383.0,78382.0,0.025]
[1743982918718,0.012758,78381.0,78380.0,0.0498334]
[1743982919475,0.2505875,78381.0,78380.0,0.0498334]
[1743982920249,0.25995292,78381.0,78380.0,4e-07]
[1743982920491,0.012763,78347.0,78346.0,0.025]
[1743982920708,0.012761,78358.0,78353.0,0.025]
[1743982920904,0.012763,78351.0,78346.0,0.005]
[1743982921102,0.012762,78353.0,78346.0,0.03]
[1743982921332,0.268013,78355.0,78342.0,0.01805625]
[1743982921567,0.012761,78361.0,78353.0,0.025]
[1743982921568,0.268007,78357.0,78353.0,0.025]
[1743982921770,0.012763,78346.0,78341.0,0.005]
[1743982921900,0.012763,78351.0,78331.0,0.059166]
[1743982921901,0.268061,78340.0,78338.0,0.025]
[1743982922108,0.255307,78337.0,78336.0,0.025]
[1743982922339,0.25533,78330.0,78327.0,0.21592]
[1743982922693,0.25529,78342.0,78337.0,0.025]
[1743982922907,0.255313,78335.0,78334.0,0.03]
[1743982923080,0.255301,78339.0,78337.0,0.025]